[Event "Elegant 1st Division League 2024"]
[Site "Dhaka"]
[Date "2024.07.18"]
[Round "8.21"]
[White "Mohammad, Shakil"]
[Black "Md, Eftekhar Alam"]
[Result "1-0"]
[Annotator "NA RC"]
[ECO "E20"]
[WhiteElo "1882"]
[BlackElo "2006"]
[PlyCount "124"]
[EventDate "2024.07.10"]
[EventType "team-tourn"]
[EventCountry "BAN"]
[SourceTitle "playchess.com"]
[Source "ChessBase"]
[SourceQuality "1"]
[TimeControl "5400+30"]

1. d4 {[%emt 0:01:21]} Nf6 {[%emt 0:00:34]} 2. c4 {[%emt 0:01:21]} e6 {[%emt 0:00:11]} 3. Nc3 {[%emt 0:00:15]} Bb4 {[%emt 0:00:13]} 4. f3 {[%emt 0:00:07]} c5 {[%emt 0:00:50]} 5. d5 {[%emt 0:00:22]} Bxc3+ {[%emt 0:01:13]} 6. bxc3 {[%emt 0:00:04]} d6 {[%emt 0:00:23]} 7. e4 {[%emt 0:00:27]} e5 {[%emt 0:00:08]} 8. Bd3 {[%emt 0:00:54]} O-O {[%emt 0:04:22]} 9. Bg5 {[%emt 0:00:44] E20: Nimzo-Indian: 4 g3 and 4 f3.} Nbd7 {[%emt 0:00:34]} 10. Ne2 {[%emt 0:00:20]} Qe7 {[%emt 0:06:57]} 11. g4 {[%emt 0:02:17]} h6 {[%emt 0:08:23]} 12. Be3 {[%emt 0:01:41]} Nh7 {[%emt 0:01:22]} 13. h4 {[%emt 0:00:13]} f6 {[%emt 0:12:49]} 14. Ng3 {[%emt 0:00:27]} Nb6 {[%emt 0:05:41]} 15. a4 {[%emt 0:00:16]} Bd7 {[%emt 0:00:17]} 16. a5 {[%emt 0:00:38]} Nc8 {[%emt 0:00:02]} 17. Ra2 {[%emt 0:04:36]} Qd8 {[%emt 0:03:08]} 18. Qc1 {[%emt 0:04:14]} g5 $2 {[%emt 0:01:10]} (18... Ne7 $16 19. Kf2 b6) 19. hxg5 {[%emt 0:06:45]} hxg5 {[%emt 0:00:23]} 20. Rh6 $18 {[%emt 0:04:24]} ({Not} 20. Rah2 Rf7 21. Qb2 Ne7 $18) 20... Kg7 {[%emt 0:12:38]} 21. Rah2 {[%emt 0:00:32]} Rh8 {[%emt 0:00:36]} 22. Kf2 {[%emt 0:00:22]} Ne7 {[%emt 0:10:05]} 23. Qh1 {[%emt 0:03:22]} Qg8 {[%emt 0:01:45]} 24. Nh5+ {[%emt 0:01:10]} Kxh6 {[%emt 0:04:57]} 25. Nxf6+ {[%emt 0:00:08]} Kg7 {[%emt 0:00:04]} 26. Nxg8 {[%emt 0:00:15]} Raxg8 {[%emt 0:00:24]} 27. Rh6 {[%emt 0:02:55]} Nf6 {[%emt 0:06:49]} 28. Bxg5 {[%emt 0:01:40]} Ng6 {[%emt 0:00:42]} 29. Rxh8 {[%emt 0:16:33]} Rxh8 {[%emt 0:00:16]} 30. Qb1 {[%emt 0:01:42]} Bc8 {[%emt 0:00:29]} 31. a6 {[%emt 0:02:13]} b6 {[%emt 0:00:20]} 32. Kg3 {[%emt 0:01:36]} Bd7 {[%emt 0:00:14]} 33. Qc1 {[%emt 0:02:34]} Nh7 {[%emt 0:02:43]} 34. Bh6+ {[%emt 0:01:26]} Kf7 {[%emt 0:00:09]} 35. Bc2 {[%emt 0:06:04]} Nf6 {[%emt 0:00:35]} 36. Bg5 {[%emt 0:00:28]} Nh7 {[%emt 0:00:59]} 37. Be3 {[%emt 0:04:31]} Nf6 {[%emt 0:00:24]} 38. Qf1 {[%emt 0:03:10]} Rg8 {[%emt 0:01:07]} 39. Kf2 {[%emt 0:02:28]} Rh8 {[%emt 0:00:20]} 40. Qg2 {[%emt 0:05:40]} Rh4 {[%emt 0:02:29]} 41. Ke1 {[%emt 0:06:03]} Rh8 {[%emt 0:01:07]} 42. Kd2 {[%emt 0:01:02]} Nh4 {[%emt 0:00:31]} 43. Qf2 {[%emt 0:01:00]} Ng6 {[%emt 0:00:24]} 44. Kc1 {[%emt 0:00:44]} Kg7 {[%emt 0:00:26]} 45. Kb2 {[%emt 0:00:19]} Rh3 {[%emt 0:00:19]} 46. Qg2 {[%emt 0:00:44]} Rh8 {[%emt 0:01:24]} 47. Bg5 {[%emt 0:00:47]} Nh7 {[%emt 0:00:22]} 48. Be3 {[%emt 0:00:19]} Nf6 {[%emt 0:00:16]} 49. Ka3 {[%emt 0:00:41]} Nh4 {[%emt 0:01:15]} 50. Qg3 {[%emt 0:00:48]} Ng6 {[%emt 0:00:00]} 51. Ba4 {[%emt 0:00:11]} Bc8 {[%emt 0:01:43]} 52. Bc2 {[%emt 0:02:01]} Bxa6 {[%emt 0:01:14]} 53. f4 {[%emt 0:00:11]} Bxc4 {[%emt 0:01:16]} 54. f5 {[%emt 0:00:26]} Ne7 {[%emt 0:01:27]} 55. g5 {[%emt 0:00:15]} Nh5 {[%emt 0:00:57]} 56. Qg4 {[%emt 0:00:56]} Kf8 {[%emt 0:00:27]} 57. f6 {[%emt 0:04:14]} Ng6 {[%emt 0:00:11]} 58. Qc8+ {[%emt 0:00:25]} Kf7 {[%emt 0:00:02]} 59. Qe6+ {[%emt 0:00:21]} Kf8 {[%emt 0:09:54]} 60. Qxd6+ {[%emt 0:00:17]} Kg8 {[%emt 0:00:00]} 61. Qe6+ {[%emt 0:01:17]} Kf8 {[%emt 0:00:00]} 62. Ba4 {[%emt 0:01:26]} b5 {[%emt 0:00:00]} 1-0

[Event "Elegant 1st Division League 2024"]
[Site "Dhaka"]
[Date "2024.07.18"]
[Round "8.22"]
[White "Mahindrakar Indrajeet"]
[Black "Hrishin, Talukder"]
[Result "1-0"]
[Annotator "RC"]
[ECO "A47"]
[WhiteElo "2129"]
[BlackElo "1982"]
[PlyCount "63"]
[EventDate "2024.07.10"]
[EventType "team-tourn"]
[EventCountry "BAN"]
[SourceTitle "playchess.com"]
[Source "ChessBase"]
[SourceQuality "1"]
[TimeControl "5400+30"]

1. d4 {[%emt 0:00:20]} Nf6 {[%emt 0:00:07]} 2. Nf3 {[%emt 0:00:30]} c5 {[%emt 0:01:13]} 3. e3 {[%emt 0:01:16]} g6 {[%emt 0:01:47]} 4. Nbd2 {[%emt 0:04:07]} Bg7 {[%emt 0:05:17]} 5. Bd3 {[%emt 0:02:53]} b6 {[%emt 0:00:30]} 6. b3 {[%emt 0:02:49]} Bb7 {[%emt 0:03:54]} 7. Bb2 {[%emt 0:00:17]} O-O {[%emt 1:21:12]} 8. O-O Nc6 {[%emt 0:00:00]} 9. a3 {[%emt 1:22:48]} d6 {[%emt 0:00:00]} 10. Ra2 {[%emt 0:00:00]} cxd4 {[%emt 0:00:00]} 11. exd4 {[%emt 0:00:00]} Nh5 {[%emt 0:00:00]} 12. Re1 {[%emt 0:00:00]} Nf4 {[%emt 0:00:00]} 13. Bf1 {[%emt 0:00:00]} Qd7 {[%emt 0:00:00]} 14. Ne4 {[%emt 0:00:00]} Rad8 {[%emt 0:00:00]} 15. Ng3 {[%emt 0:00:00]} h5 {[%emt 0:00:00]} 16. d5 {[%emt 0:00:00]} Ne5 {[%emt 0:00:00]} 17. c4 {[%emt 0:00:00]} Nxf3+ {[%emt 0:00:00]} 18. Qxf3 {[%emt 0:00:00]} Bxb2 {[%emt 0:00:00]} 19. Rxb2 {[%emt 0:00:00]} e5 {[%emt 0:00:00]} 20. Ne4 {[%emt 0:00:00]} Qf5 {[%emt 0:04:03]} 21. a4 {[%emt 0:00:00]} g5 {[%emt 0:01:01]} 22. Qe3 {[%emt 0:00:00]} f6 {[%emt 0:00:57]} 23. a5 {[%emt 0:00:00]} Bc8 {[%emt 0:01:25]} 24. axb6 {[%emt 0:00:00]} axb6 {[%emt 0:00:02]} 25. Qxb6 {[%emt 0:00:00]} h4 {[%emt 0:01:00]} 26. Ra2 {[%emt 0:00:00]} g4 {[%emt 0:00:23]} 27. Nxd6 {[%emt 0:02:26]} Rxd6 {[%emt 0:00:36]} 28. Qxd6 {[%emt 0:00:01]} h3 {[%emt 0:00:10]} 29. g3 {[%emt 0:01:58]} Nd3 {[%emt 0:00:06]} 30. Re3 {[%emt 0:00:31]} Nc1 {[%emt 0:01:13]} 31. Ra1 {[%emt 0:01:24]} Qc2 {[%emt 0:00:25]} 32. Qa3 {[%emt 0:00:31]} 1-0

[Event "Elegant 1st Division League 2024"]
[Site "Dhaka"]
[Date "2024.07.18"]
[Round "8.24"]
[White "Md, Azmaeen Parvez Sayor"]
[Black "Mohammed, Shaker Ullah"]
[Result "1/2-1/2"]
[Annotator "RC"]
[ECO "D45"]
[WhiteElo "1969"]
[BlackElo "2018"]
[PlyCount "40"]
[EventDate "2024.07.10"]
[EventType "team-tourn"]
[EventCountry "BAN"]
[SourceTitle "playchess.com"]
[Source "ChessBase"]
[SourceQuality "1"]
[TimeControl "5400+30"]

1. d4 {[%emt 0:00:04]} d5 {[%emt 0:00:51]} 2. c4 {[%emt 0:00:05]} c6 {[%emt 0:00:03]} 3. Nc3 {[%emt 0:00:04]} Nf6 {[%emt 0:00:06]} 4. e3 {[%emt 0:00:07]} e6 {[%emt 0:00:02]} 5. Nf3 {[%emt 0:00:05]} Nbd7 {[%emt 0:00:04]} 6. Be2 {[%emt 0:00:07]} Bd6 {[%emt 0:00:29]} 7. O-O {[%emt 0:00:23]} dxc4 {[%emt 0:00:24]} 8. a4 {[%emt 0:01:03]} O-O {[%emt 0:01:28]} 9. Nd2 {[%emt 0:01:51]} Bc7 {[%emt 0:04:56]} 10. Nxc4 {[%emt 0:01:17]} e5 {[%emt 0:00:16]} 11. a5 {[%emt 0:07:42]} exd4 {[%emt 0:03:18]} 12. Qxd4 {[%emt 0:00:37]} Qe7 {[%emt 0:00:53]} 13. b3 {[%emt 0:04:03]} Rd8 {[%emt 0:02:42]} 14. Ba3 {[%emt 0:09:08]} Qe6 {[%emt 0:00:30]} 15. Rad1 {[%emt 0:00:30]} Qe8 {[%emt 0:00:30]} 16. Bc1 {[%emt 0:00:30]} Qe6 {[%emt 0:00:30]} 17. Ba3 {[%emt 0:00:30]} Qe8 {[%emt 0:00:30]} 18. Bc1 {[%emt 0:00:30]} Qe6 {[%emt 0:00:30]} 19. Ba3 {[%emt 0:00:30]} Qe8 {[%emt 0:00:30]} 20. Bc1 {[%emt 0:00:30]} Qe6 {[%emt 0:00:30]} 1/2-1/2